[Event "Early-Titled-Tuesday-Blitz-June-18-2024"]
[Site "Chess.com"]
[Date "2024.06.18"]
[Round "5"]
[White "Onischuk_V"]
[Black "xasid81"]
[Result "1-0"]
[WhiteElo "2827"]
[BlackElo "2628"]
[TimeControl "180+1"]
[EndTime "8:59:36 PDT"]
[Termination "Onischuk_V won by resignation"]

1. e4 {[%clk 0:02:57.9]} 1... a6 {[%clk 0:02:58.7]} 2. d4 {[%clk 0:02:56]} 2...
e6 {[%clk 0:02:59]} 3. Nf3 {[%clk 0:02:50.6]} 3... d5 {[%clk 0:02:58.9]} 4. Nc3
{[%clk 0:02:50.9]} 4... Nf6 {[%clk 0:02:52.4]} 5. Bg5 {[%clk 0:02:48.8]} 5...
Bb4 {[%clk 0:02:44.4]} 6. Bd3 {[%clk 0:02:37.1]} 6... dxe4 {[%clk 0:02:37.8]} 7.
Bxe4 {[%clk 0:02:37]} 7... h6 {[%clk 0:02:35.6]} 8. Bxf6 {[%clk 0:02:36.7]} 8...
Qxf6 {[%clk 0:02:36.1]} 9. O-O {[%clk 0:02:36.2]} 9... Nd7 {[%clk 0:02:25.7]}
10. Qe2 {[%clk 0:02:31.9]} 10... O-O {[%clk 0:02:21.8]} 11. Rad1 {[%clk
0:02:31.7]} 11... Bxc3 {[%clk 0:02:12.8]} 12. bxc3 {[%clk 0:02:31.2]} 12... c5
{[%clk 0:02:08.1]} 13. a4 {[%clk 0:02:23.9]} 13... Rb8 {[%clk 0:02:05]} 14. a5
{[%clk 0:02:24.1]} 14... cxd4 {[%clk 0:02:02]} 15. cxd4 {[%clk 0:02:23.7]} 15...
Qd8 {[%clk 0:01:53.3]} 16. Qd2 {[%clk 0:02:23.3]} 16... Nf6 {[%clk 0:01:52.4]}
17. Bd3 {[%clk 0:02:22.8]} 17... Bd7 {[%clk 0:01:51.2]} 18. c4 {[%clk
0:02:22.1]} 18... Ba4 {[%clk 0:01:40.8]} 19. Rb1 {[%clk 0:02:20.8]} 19... Bc6
{[%clk 0:01:39.9]} 20. Ne5 {[%clk 0:02:21]} 20... Be4 {[%clk 0:01:38.7]} 21.
Bxe4 {[%clk 0:02:18.3]} 21... Nxe4 {[%clk 0:01:39.6]} 22. Qe3 {[%clk 0:02:18.4]}
22... Nd6 {[%clk 0:01:36]} 23. Qc3 {[%clk 0:02:04.8]} 23... Ne4 {[%clk
0:01:34.5]} 24. Qd3 {[%clk 0:01:58.1]} 24... Nd6 {[%clk 0:01:33.9]} 25. Rb6
{[%clk 0:01:57.6]} 25... Nc8 {[%clk 0:01:15.6]} 26. Rb3 {[%clk 0:01:56.5]} 26...
Nd6 {[%clk 0:01:10.5]} 27. Qc3 {[%clk 0:01:53.9]} 27... Ne4 {[%clk 0:01:07.2]}
28. Qb2 {[%clk 0:01:54.1]} 28... Qc7 {[%clk 0:00:43.5]} 29. c5 {[%clk
0:01:42.9]} 29... Rfd8 {[%clk 0:00:37.6]} 30. Rb1 {[%clk 0:01:36.7]} 30... Nf6
{[%clk 0:00:30.8]} 31. Rxb7 {[%clk 0:01:16.1]} 31... Rxb7 {[%clk 0:00:29.9]} 32.
Qxb7 {[%clk 0:01:16.7]} 32... Qxb7 {[%clk 0:00:26.5]} 33. Rxb7 {[%clk
0:01:16.5]} 33... Rxd4 {[%clk 0:00:26.9]} 34. g3 {[%clk 0:01:16.7]} 34... Rd5
{[%clk 0:00:20.4]} 35. c6 {[%clk 0:01:15.4]} 35... Rc5 {[%clk 0:00:20.3]} 36.
Rb6 {[%clk 0:01:05]} 36... Nd5 {[%clk 0:00:17.1]} 37. Rxa6 {[%clk 0:01:03.7]}
37... Nb4 {[%clk 0:00:15.2]} 38. Ra8+ {[%clk 0:01:02.6]} 38... Kh7 {[%clk
0:00:15]} 39. Nxf7 {[%clk 0:00:45.7]} 39... Nxc6 {[%clk 0:00:14.4]} 40. a6
{[%clk 0:00:44.2]} 40... Kg6 {[%clk 0:00:12.5]} 41. Nd8 {[%clk 0:00:40.6]} 41...
Nxd8 {[%clk 0:00:11.9]} 42. Rxd8 {[%clk 0:00:40]} 42... Ra5 {[%clk 0:00:12.4]}
43. Ra8 {[%clk 0:00:25.4]} 43... Ra2 {[%clk 0:00:11]} 44. h4 {[%clk 0:00:23.9]}
44... Kf7 {[%clk 0:00:10.7]} 45. Kg2 {[%clk 0:00:23.9]} 45... Ra3 {[%clk
0:00:10.9]} 46. h5 {[%clk 0:00:20.8]} 46... Ra4 {[%clk 0:00:10.2]} 47. f3 {[%clk
0:00:18.8]} 47... Ra5 {[%clk 0:00:10.3]} 48. g4 {[%clk 0:00:18.7]} 48... Ra4
{[%clk 0:00:10.8]} 49. Kg3 {[%clk 0:00:18.6]} 49... Ra5 {[%clk 0:00:10.9]} 50.
a7 {[%clk 0:00:17]} 50... Ra4 {[%clk 0:00:10.8]} 51. g5 {[%clk 0:00:17.2]} 51...
hxg5 {[%clk 0:00:09.9]} 52. h6 {[%clk 0:00:17.7]} 52... Kg6 {[%clk 0:00:08.4]}
53. Kf2 {[%clk 0:00:04.1]} 53... Ra3 {[%clk 0:00:06.7]} 54. Ke2 {[%clk
0:00:04.3]} 54... Kh7 {[%clk 0:00:06.3]} 55. hxg7 {[%clk 0:00:03.2]} 55... Kxg7
{[%clk 0:00:06.6]} 56. Kd2 {[%clk 0:00:03.5]} 56... Kh7 {[%clk 0:00:06.8]} 57.
Kc2 {[%clk 0:00:03.8]} 57... Kg7 {[%clk 0:00:06.7]} 58. Kb2 {[%clk 0:00:04.1]}
58... Ra5 {[%clk 0:00:06.9]} 59. Kc3 {[%clk 0:00:04.4]} 59... Kh7 {[%clk
0:00:05.4]} 60. Kd4 {[%clk 0:00:04.4]} 60... Kg7 {[%clk 0:00:04.4]} 61. Kc4
{[%clk 0:00:05.1]} 61... Kh7 {[%clk 0:00:04.3]} 62. Kb4 {[%clk 0:00:05.8]} 62...
Ra1 {[%clk 0:00:04.5]} 63. Kc5 {[%clk 0:00:06.4]} 63... Kg7 {[%clk 0:00:04.8]}
64. Kd6 {[%clk 0:00:06.4]} 64... Ra6+ {[%clk 0:00:04.5]} 65. Ke5 {[%clk
0:00:06.3]} 65... Kh7 {[%clk 0:00:04.2]} 66. Kf6 {[%clk 0:00:06.4]} 66... Ra5
{[%clk 0:00:04.6]} 67. Kxe6 {[%clk 0:00:06.4]} 67... Kg7 {[%clk 0:00:05]} 68.
Ke7 {[%clk 0:00:06.4]} 68... Kh7 {[%clk 0:00:04.7]} 69. Kf6 {[%clk 0:00:06.8]}
69... Ra6+ {[%clk 0:00:02.4]} 70. Kxg5 {[%clk 0:00:07.1]} 70... Ra5+ {[%clk
0:00:03.3]} 71. Kg4 {[%clk 0:00:07.5]} 71... Kg7 {[%clk 0:00:02.7]} 72. f4
{[%clk 0:00:07.8]} 72... Kh7 {[%clk 0:00:02.5]} 73. f5 {[%clk 0:00:08.3]} 73...
Kg7 {[%clk 0:00:03.4]} 74. f6+ {[%clk 0:00:08.6]} 74... Kh7 {[%clk 0:00:03.5]}
75. f7 {[%clk 0:00:09]} 75... Ra4+ {[%clk 0:00:02.8]} 76. Kf3 {[%clk 0:00:09]}
76... Ra5 {[%clk 0:00:03.6]} 77. f8=Q {[%clk 0:00:08.6]} 1-0

[Event "Early-Titled-Tuesday-Blitz-June-18-2024"]
[Site "Chess.com"]
[Date "2024.06.18"]
[Round "5"]
[White "FGHSMN"]
[Black "gafkens"]
[Result "1-0"]
[WhiteElo "2907"]
[BlackElo "2619"]
[TimeControl "180+1"]
[EndTime "8:59:46 PDT"]
[Termination "FGHSMN won by resignation"]

1. b3 {[%clk 0:02:54.5]} 1... g6 {[%clk 0:02:48.2]} 2. Bb2 {[%clk 0:02:53.5]}
2... Nf6 {[%clk 0:02:48.8]} 3. Nf3 {[%clk 0:02:54.2]} 3... Bg7 {[%clk
0:02:48.9]} 4. g3 {[%clk 0:02:55]} 4... O-O {[%clk 0:02:49.4]} 5. Bg2 {[%clk
0:02:55.6]} 5... d5 {[%clk 0:02:45.6]} 6. c4 {[%clk 0:02:53.9]} 6... c5 {[%clk
0:02:35]} 7. cxd5 {[%clk 0:02:53.2]} 7... Nxd5 {[%clk 0:02:31.8]} 8. Bxg7 {[%clk
0:02:54.1]} 8... Kxg7 {[%clk 0:02:32]} 9. O-O {[%clk 0:02:52.8]} 9... Nc6 {[%clk
0:02:31.7]} 10. d4 {[%clk 0:02:52.1]} 10... cxd4 {[%clk 0:02:23.4]} 11. Nxd4
{[%clk 0:02:53]} 11... Nxd4 {[%clk 0:02:15.5]} 12. Qxd4+ {[%clk 0:02:53.9]}
12... Nf6 {[%clk 0:02:15.7]} 13. Qe5 {[%clk 0:02:54.3]} 13... Qd6 {[%clk
0:01:35.5]} 14. Qxd6 {[%clk 0:02:53.4]} 14... exd6 {[%clk 0:01:36.4]} 15. Nc3
{[%clk 0:02:53.7]} 15... Rd8 {[%clk 0:01:31.8]} 16. Rfd1 {[%clk 0:02:52.1]}
16... a6 {[%clk 0:01:18.4]} 17. Rd2 {[%clk 0:02:47.2]} 17... Kf8 {[%clk
0:01:17.1]} 18. Rc1 {[%clk 0:02:09]} 18... Rb8 {[%clk 0:01:12.5]} 19. Nd5 {[%clk
0:01:15.1]} 19... Ne8 {[%clk 0:01:08.4]} 20. Nb6 {[%clk 0:01:14]} 20... Be6
{[%clk 0:01:07.5]} 21. b4 {[%clk 0:00:59.4]} 21... Nf6 {[%clk 0:01:00.8]} 22. a4
{[%clk 0:00:56.1]} 22... d5 {[%clk 0:00:55.8]} 23. Rc7 {[%clk 0:00:42.2]} 23...
Ne8 {[%clk 0:00:55.1]} 24. Rc5 {[%clk 0:00:41.8]} 24... Rd6 {[%clk 0:00:51.9]}
25. Nxd5 {[%clk 0:00:32.7]} 25... Rbd8 {[%clk 0:00:51.3]} 26. e4 {[%clk
0:00:29.6]} 26... Bxd5 {[%clk 0:00:51.3]} 27. exd5 {[%clk 0:00:23.4]} 27... R6d7
{[%clk 0:00:45.9]} 28. Rc1 {[%clk 0:00:20.2]} 28... Nd6 {[%clk 0:00:46]} 29.
Rdc2 {[%clk 0:00:20.7]} 29... Re7 {[%clk 0:00:44.9]} 30. Kf1 {[%clk 0:00:19.9]}
30... g5 {[%clk 0:00:43.2]} 31. Rc5 {[%clk 0:00:19]} 31... f5 {[%clk 0:00:43.2]}
32. b5 {[%clk 0:00:18.4]} 32... axb5 {[%clk 0:00:42.8]} 33. axb5 {[%clk
0:00:19.3]} 33... f4 {[%clk 0:00:37.6]} 34. b6 {[%clk 0:00:18.4]} 34... Rf7
{[%clk 0:00:34.4]} 35. Rc7 {[%clk 0:00:18]} 35... h5 {[%clk 0:00:25.8]} 36.
Rxf7+ {[%clk 0:00:15.5]} 36... Kxf7 {[%clk 0:00:26.7]} 37. gxf4 {[%clk
0:00:15.6]} 37... gxf4 {[%clk 0:00:24]} 38. Bh3 {[%clk 0:00:15.6]} 38... Kf6
{[%clk 0:00:24.2]} 39. Be6 {[%clk 0:00:14.1]} 39... f3 {[%clk 0:00:23.6]} 40.
Rc3 {[%clk 0:00:13.5]} 40... Ke5 {[%clk 0:00:23.2]} 41. Rxf3 {[%clk 0:00:14]}
41... Nc4 {[%clk 0:00:23.9]} 42. Rh3 {[%clk 0:00:13.4]} 42... Rh8 {[%clk
0:00:23.1]} 43. Bf7 {[%clk 0:00:10]} 43... h4 {[%clk 0:00:22.2]} 44. Ke2 {[%clk
0:00:08.6]} 44... Nxb6 {[%clk 0:00:22.1]} 45. Rb3 {[%clk 0:00:08.2]} 45... Nxd5
{[%clk 0:00:20.7]} 46. Rb5 {[%clk 0:00:08.7]} 46... Rd8 {[%clk 0:00:20.8]} 47.
Kd3 {[%clk 0:00:07.7]} 47... Rd7 {[%clk 0:00:11.8]} 48. f4+ {[%clk 0:00:08.2]}
48... Kxf4 {[%clk 0:00:12.3]} 49. Bxd5 {[%clk 0:00:08.8]} 49... Kg4 {[%clk
0:00:11.5]} 50. Ke3 {[%clk 0:00:04.4]} 50... Re7+ {[%clk 0:00:11.7]} 51. Kf2
{[%clk 0:00:04.9]} 51... Kh3 {[%clk 0:00:12.3]} 52. Kg1 {[%clk 0:00:02.9]} 52...
Re1+ {[%clk 0:00:12.2]} 53. Kf2 {[%clk 0:00:03.5]} 53... Re7 {[%clk 0:00:12.7]}
54. Rb1 {[%clk 0:00:01.9]} 54... Re5 {[%clk 0:00:07.5]} 55. Bxb7 {[%clk
0:00:02.1]} 55... Rf5+ {[%clk 0:00:06.5]} 56. Bf3 {[%clk 0:00:02.7]} 56... Rf7
{[%clk 0:00:02.4]} 57. Rf1 {[%clk 0:00:03.2]} 57... Rf8 {[%clk 0:00:02.3]} 58.
Kg1 {[%clk 0:00:03.8]} 58... Rg8+ {[%clk 0:00:02.4]} 59. Kf2 {[%clk 0:00:03.1]}
59... Rf8 {[%clk 0:00:02.4]} 60. Re1 {[%clk 0:00:02.3]} 60... Rf7 {[%clk
0:00:02.3]} 61. Re4 {[%clk 0:00:02.6]} 61... Rf8 {[%clk 0:00:02.8]} 62. Re5
{[%clk 0:00:02.8]} 62... Rg8 {[%clk 0:00:03]} 63. Rd5 {[%clk 0:00:02.8]} 63...
Rf8 {[%clk 0:00:03.6]} 64. Rd1 {[%clk 0:00:01.4]} 64... Rg8 {[%clk 0:00:04.1]}
65. Ke3 {[%clk 0:00:02.1]} 65... Re8+ {[%clk 0:00:04.3]} 66. Be4 {[%clk
0:00:01.7]} 66... Rf8 {[%clk 0:00:05.2]} 67. Rd2 {[%clk 0:00:01.3]} 67... Re8
{[%clk 0:00:05.7]} 68. Re2 {[%clk 0:00:01.8]} 68... Rxe4+ {[%clk 0:00:05.9]} 69.
Kxe4 {[%clk 0:00:01.8]} 69... Kg4 {[%clk 0:00:06.8]} 70. Ke3 {[%clk 0:00:02.3]}
70... h3 {[%clk 0:00:07.7]} 71. Kd2 {[%clk 0:00:02.9]} 71... Kf4 {[%clk
0:00:08.6]} 72. Ke1 {[%clk 0:00:03.5]} 72... Kf3 {[%clk 0:00:09.4]} 73. Kf1
{[%clk 0:00:04.3]} 73... Kf4 {[%clk 0:00:09.4]} 74. Rf2+ {[%clk 0:00:04.9]}
74... Ke3 {[%clk 0:00:09.8]} 75. Rf6 {[%clk 0:00:05]} 75... Ke4 {[%clk
0:00:09.9]} 76. Rh6 {[%clk 0:00:05.9]} 76... Ke3 {[%clk 0:00:10.8]} 77. Rxh3+
{[%clk 0:00:06.8]} 77... Ke4 {[%clk 0:00:11.7]} 78. Rg3 {[%clk 0:00:07.3]} 1-0

[Event "Early-Titled-Tuesday-Blitz-June-18-2024"]
[Site "Chess.com"]
[Date "2024.06.18"]
[Round "5"]
[White "rionelG"]
[Black "carloseduar100"]
[Result "0-1"]
[WhiteElo "2345"]
[BlackElo "2259"]
[TimeControl "180+1"]
[EndTime "8:59:46 PDT"]
[Termination "carloseduar100 won on time"]

1. e4 {[%clk 0:03:00.9]} 1... e6 {[%clk 0:03:00]} 2. d3 {[%clk 0:02:59.4]} 2...
d5 {[%clk 0:03:00.9]} 3. Nd2 {[%clk 0:02:59.4]} 3... Nf6 {[%clk 0:03:01.5]} 4.
g3 {[%clk 0:02:59.4]} 4... Be7 {[%clk 0:03:02]} 5. Bg2 {[%clk 0:02:59.6]} 5...
c5 {[%clk 0:03:02.5]} 6. Ngf3 {[%clk 0:02:59.8]} 6... Nc6 {[%clk 0:03:03.1]} 7.
O-O {[%clk 0:03:00.3]} 7... b5 {[%clk 0:03:03.6]} 8. Re1 {[%clk 0:03:00.4]} 8...
a5 {[%clk 0:03:04.1]} 9. a3 {[%clk 0:02:57.3]} 9... Bb7 {[%clk 0:03:00.5]} 10.
c3 {[%clk 0:02:54.4]} 10... b4 {[%clk 0:02:58]} 11. e5 {[%clk 0:02:53]} 11...
Nd7 {[%clk 0:02:57.2]} 12. Nf1 {[%clk 0:02:52.9]} 12... Qc7 {[%clk 0:02:50.2]}
13. Bf4 {[%clk 0:02:51.4]} 13... bxc3 {[%clk 0:02:49.7]} 14. bxc3 {[%clk
0:02:50.9]} 14... a4 {[%clk 0:02:47.4]} 15. h4 {[%clk 0:02:49.5]} 15... h6
{[%clk 0:02:44]} 16. Rb1 {[%clk 0:02:40.4]} 16... O-O {[%clk 0:02:22.3]} 17. Ne3
{[%clk 0:02:31.6]} 17... Rfb8 {[%clk 0:02:11.8]} 18. Nxd5 {[%clk 0:02:29.2]}
18... exd5 {[%clk 0:02:02.9]} 19. e6 {[%clk 0:02:28.8]} 19... Bd6 {[%clk
0:02:00.6]} 20. Bxd6 {[%clk 0:02:07.2]} 20... Qxd6 {[%clk 0:02:00.3]} 21. exd7
{[%clk 0:02:06.8]} 21... Qxd7 {[%clk 0:01:59.3]} 22. Ne5 {[%clk 0:02:03.6]}
22... Nxe5 {[%clk 0:01:58.8]} 23. Rxe5 {[%clk 0:02:04.5]} 23... Bc6 {[%clk
0:01:37.2]} 24. Rxb8+ {[%clk 0:01:53.1]} 24... Rxb8 {[%clk 0:01:36.1]} 25. Qe2
{[%clk 0:01:37.9]} 25... Rb3 {[%clk 0:01:18.4]} 26. Re7 {[%clk 0:01:33.2]} 26...
Qf5 {[%clk 0:01:16.3]} 27. c4 {[%clk 0:01:25.5]} 27... Qxd3 {[%clk 0:00:55.1]}
28. cxd5 {[%clk 0:00:59.7]} 28... Bxd5 {[%clk 0:00:50.9]} 29. Re8+ {[%clk
0:00:45.1]} 29... Kh7 {[%clk 0:00:44.5]} 30. Qxd3+ {[%clk 0:00:45.1]} 30... Rxd3
{[%clk 0:00:44.1]} 31. Rd8 {[%clk 0:00:45.6]} 31... Rd1+ {[%clk 0:00:32.7]} 32.
Kh2 {[%clk 0:00:44]} 32... Bb3 {[%clk 0:00:31.9]} 33. Be4+ {[%clk 0:00:43.2]}
33... g6 {[%clk 0:00:32.1]} 34. Rc8 {[%clk 0:00:35.7]} 34... Rd2 {[%clk
0:00:20.6]} 35. Kg2 {[%clk 0:00:34]} 35... Bd5 {[%clk 0:00:20]} 36. Bxd5 {[%clk
0:00:26.5]} 36... Rxd5 {[%clk 0:00:20.9]} 37. Ra8 {[%clk 0:00:21.5]} 37... Rd4
{[%clk 0:00:20.9]} 38. Ra5 {[%clk 0:00:21.3]} 38... Rc4 {[%clk 0:00:20.7]} 39.
Kf3 {[%clk 0:00:20.1]} 39... Kg7 {[%clk 0:00:20.5]} 40. Ke2 {[%clk 0:00:19.8]}
40... Rc2+ {[%clk 0:00:17.5]} 41. Ke3 {[%clk 0:00:19.2]} 41... Rc3+ {[%clk
0:00:17.6]} 42. Ke2 {[%clk 0:00:17.8]} 42... Rxa3 {[%clk 0:00:18.2]} 43. Rxc5
{[%clk 0:00:18.1]} 43... Ra1 {[%clk 0:00:18.8]} 44. Ra5 {[%clk 0:00:17.8]} 44...
a3 {[%clk 0:00:19.2]} 45. Ra6 {[%clk 0:00:18.1]} 45... a2 {[%clk 0:00:19.6]} 46.
Kf3 {[%clk 0:00:18.5]} 46... g5 {[%clk 0:00:19.9]} 47. hxg5 {[%clk 0:00:17.9]}
47... hxg5 {[%clk 0:00:20.8]} 48. Kg4 {[%clk 0:00:18.1]} 48... f6 {[%clk
0:00:19.5]} 49. Kf5 {[%clk 0:00:17.1]} 49... Rf1 {[%clk 0:00:14.6]} 50. Rxa2
{[%clk 0:00:16.8]} 50... Kh6 {[%clk 0:00:13.1]} 51. g4 {[%clk 0:00:15.1]} 51...
Kg7 {[%clk 0:00:12.1]} 52. Rb2 {[%clk 0:00:10]} 52... Kf7 {[%clk 0:00:11.5]} 53.
Rb7+ {[%clk 0:00:10]} 53... Ke8 {[%clk 0:00:11]} 54. Ke6 {[%clk 0:00:10.3]}
54... Kf8 {[%clk 0:00:10.2]} 55. Kxf6 {[%clk 0:00:10]} 55... Rxf2+ {[%clk
0:00:10.3]} 56. Kxg5 {[%clk 0:00:10.2]} 56... Rc2 {[%clk 0:00:10]} 57. Kh5
{[%clk 0:00:07.8]} 57... Kg8 {[%clk 0:00:09.2]} 58. g5 {[%clk 0:00:07.2]} 58...
Kh8 {[%clk 0:00:08.2]} 59. Kh6 {[%clk 0:00:06]} 59... Rc8 {[%clk 0:00:04.5]} 60.
g6 {[%clk 0:00:05.2]} 60... Kg8 {[%clk 0:00:04.8]} 61. Rd7 {[%clk 0:00:03.4]}
61... Re8 {[%clk 0:00:04.2]} 62. Rg7+ {[%clk 0:00:03]} 62... Kh8 {[%clk
0:00:03.8]} 63. Ra7 {[%clk 0:00:03.1]} 63... Kg8 {[%clk 0:00:03.5]} 64. Rb7
{[%clk 0:00:03.1]} 64... Ra8 {[%clk 0:00:03.3]} 65. Rg7+ {[%clk 0:00:03.3]}
65... Kh8 {[%clk 0:00:03.3]} 66. Rh7+ {[%clk 0:00:03.7]} 66... Kg8 {[%clk
0:00:03.4]} 67. Rg7+ {[%clk 0:00:01.9]} 67... Kh8 {[%clk 0:00:03.4]} 68. Rd7
{[%clk 0:00:02.5]} 68... Kg8 {[%clk 0:00:03]} 69. Rd6 {[%clk 0:00:02.8]} 69...
Kh8 {[%clk 0:00:02.4]} 70. Rf6 {[%clk 0:00:02.4]} 70... Kg8 {[%clk 0:00:02.7]}
71. g7 {[%clk 0:00:02.4]} 71... Rb8 {[%clk 0:00:01.9]} 72. Kg6 {[%clk
0:00:02.2]} 72... Rc8 {[%clk 0:00:02.2]} 0-1

[Event "Early-Titled-Tuesday-Blitz-June-18-2024"]
[Site "Chess.com"]
[Date "2024.06.18"]
[Round "5"]
[White "Moon_stone123"]
[Black "stasOR4ik"]
[Result "0-1"]
[WhiteElo "2608"]
[BlackElo "2464"]
[TimeControl "180+1"]
[EndTime "8:59:50 PDT"]
[Termination "stasOR4ik won by resignation"]

1. e4 {[%clk 0:03:00.9]} 1... c6 {[%clk 0:03:00.1]} 2. d4 {[%clk 0:02:57.5]}
2... d5 {[%clk 0:03:01]} 3. exd5 {[%clk 0:02:52.4]} 3... cxd5 {[%clk 0:03:01.9]}
4. Bd3 {[%clk 0:02:52.6]} 4... Nc6 {[%clk 0:03:02]} 5. c3 {[%clk 0:02:52.1]}
5... Nf6 {[%clk 0:03:01.4]} 6. Bf4 {[%clk 0:02:51.6]} 6... Bg4 {[%clk
0:02:59.5]} 7. Qb3 {[%clk 0:02:51.4]} 7... Qd7 {[%clk 0:02:55]} 8. Nd2 {[%clk
0:02:51.1]} 8... e6 {[%clk 0:02:54.6]} 9. Ngf3 {[%clk 0:02:50.9]} 9... a6 {[%clk
0:02:40.5]} 10. O-O {[%clk 0:02:50]} 10... Be7 {[%clk 0:02:35.3]} 11. h3 {[%clk
0:02:44.2]} 11... Bh5 {[%clk 0:02:34.4]} 12. a4 {[%clk 0:02:41.5]} 12... O-O
{[%clk 0:02:32]} 13. Rfe1 {[%clk 0:02:40.5]} 13... Rac8 {[%clk 0:02:19]} 14. Ne5
{[%clk 0:01:53.6]} 14... Nxe5 {[%clk 0:02:17.5]} 15. Bxe5 {[%clk 0:01:54.5]}
15... Ne8 {[%clk 0:02:12.1]} 16. Qc2 {[%clk 0:01:48.5]} 16... Bg6 {[%clk
0:02:11.5]} 17. Bxg6 {[%clk 0:01:48.3]} 17... hxg6 {[%clk 0:02:12.4]} 18. a5
{[%clk 0:01:44.7]} 18... Nd6 {[%clk 0:02:11.2]} 19. Bxd6 {[%clk 0:01:42.6]}
19... Qxd6 {[%clk 0:02:09.8]} 20. Qd3 {[%clk 0:01:39.7]} 20... Rc7 {[%clk
0:01:57.7]} 21. Rec1 {[%clk 0:01:29.6]} 21... Rfc8 {[%clk 0:01:56.6]} 22. g3
{[%clk 0:01:11.1]} 22... Bd8 {[%clk 0:01:41.7]} 23. Kg2 {[%clk 0:01:07.7]} 23...
Kf8 {[%clk 0:01:01.8]} 24. h4 {[%clk 0:01:06.6]} 24... Bf6 {[%clk 0:00:48.3]}
25. Re1 {[%clk 0:01:02.7]} 25... Qc6 {[%clk 0:00:41.2]} 26. Rh1 {[%clk
0:01:00.1]} 26... Qb5 {[%clk 0:00:39.2]} 27. Qxb5 {[%clk 0:00:38.9]} 27... axb5
{[%clk 0:00:40.1]} 28. Nb3 {[%clk 0:00:39.4]} 28... Be7 {[%clk 0:00:28.3]} 29.
h5 {[%clk 0:00:36.1]} 29... gxh5 {[%clk 0:00:23.3]} 30. Rxh5 {[%clk 0:00:37]}
30... Ke8 {[%clk 0:00:19.7]} 31. Rh8+ {[%clk 0:00:34.7]} 31... Kd7 {[%clk
0:00:19.9]} 32. Rh7 {[%clk 0:00:35.6]} 32... Rg8 {[%clk 0:00:17.5]} 33. a6
{[%clk 0:00:34.7]} 33... bxa6 {[%clk 0:00:17.6]} 34. Rxa6 {[%clk 0:00:34.2]}
34... b4 {[%clk 0:00:17.8]} 35. cxb4 {[%clk 0:00:32.7]} 35... Bxb4 {[%clk
0:00:17.7]} 36. Rb6 {[%clk 0:00:33.3]} 36... Bd6 {[%clk 0:00:16.1]} 37. Kf3
{[%clk 0:00:27.1]} 37... f6 {[%clk 0:00:14.5]} 38. Ke3 {[%clk 0:00:26]} 38... e5
{[%clk 0:00:14.5]} 39. f4 {[%clk 0:00:25]} 39... exf4+ {[%clk 0:00:12.8]} 40.
gxf4 {[%clk 0:00:25.9]} 40... Re8+ {[%clk 0:00:12.8]} 41. Kd3 {[%clk 0:00:25.7]}
41... Re7 {[%clk 0:00:12.2]} 42. Rb5 {[%clk 0:00:24.4]} 42... Kc6 {[%clk
0:00:11.1]} 43. Ra5 {[%clk 0:00:24.6]} 43... Rb7 {[%clk 0:00:11.1]} 44. Kc2
{[%clk 0:00:24.3]} 44... Re2+ {[%clk 0:00:10.7]} 45. Kd3 {[%clk 0:00:23.1]}
45... Rxb2 {[%clk 0:00:10.4]} 46. Nc5 {[%clk 0:00:21.6]} 46... Bxc5 {[%clk
0:00:10.8]} 47. Rxc5+ {[%clk 0:00:21.4]} 47... Kd6 {[%clk 0:00:11.5]} 48. Rh5
{[%clk 0:00:17.4]} 48... R7b3+ {[%clk 0:00:11.2]} 49. Rc3 {[%clk 0:00:17.7]}
49... Rxc3+ {[%clk 0:00:11.5]} 50. Kxc3 {[%clk 0:00:18.6]} 50... Rf2 {[%clk
0:00:11.6]} 51. f5 {[%clk 0:00:18.8]} 51... Rf3+ {[%clk 0:00:11.3]} 52. Kd2
{[%clk 0:00:18.8]} 52... Rf4 {[%clk 0:00:11.1]} 53. Ke3 {[%clk 0:00:18.7]} 53...
Re4+ {[%clk 0:00:10.8]} 54. Kd3 {[%clk 0:00:19.4]} 54... Kc6 {[%clk 0:00:10.6]}
55. Rh7 {[%clk 0:00:19.5]} 55... Rg4 {[%clk 0:00:10.8]} 56. Ke3 {[%clk
0:00:18.2]} 56... Kb5 {[%clk 0:00:10.5]} 57. Kd3 {[%clk 0:00:17.3]} 57... Rg3+
{[%clk 0:00:10.7]} 58. Kd2 {[%clk 0:00:13.4]} 58... Kc4 {[%clk 0:00:11.6]} 59.
Rh4 {[%clk 0:00:12.6]} 59... Rf3 {[%clk 0:00:11.3]} 60. Rg4 {[%clk 0:00:12.6]}
60... Rxf5 {[%clk 0:00:11.1]} 61. Rxg7 {[%clk 0:00:13.2]} 61... Kxd4 {[%clk
0:00:11.4]} 62. Rg4+ {[%clk 0:00:14.1]} 62... Ke5 {[%clk 0:00:11.5]} 63. Ke3
{[%clk 0:00:14.7]} 63... Rh5 {[%clk 0:00:11.4]} 64. Rg3 {[%clk 0:00:14.4]} 64...
f5 {[%clk 0:00:09.6]} 65. Kd3 {[%clk 0:00:14]} 65... Rh4 {[%clk 0:00:08.7]} 66.
Rg8 {[%clk 0:00:14]} 66... Ra4 {[%clk 0:00:08]} 67. Re8+ {[%clk 0:00:14.5]}
67... Kf4 {[%clk 0:00:08.3]} 68. Rf8 {[%clk 0:00:14.4]} 68... Kg4 {[%clk
0:00:08.2]} 69. Rg8+ {[%clk 0:00:14.4]} 69... Kf3 {[%clk 0:00:08.6]} 70. Rf8
{[%clk 0:00:15.3]} 70... f4 {[%clk 0:00:08.9]} 71. Rf7 {[%clk 0:00:15.9]} 71...
Ra3+ {[%clk 0:00:07.9]} 72. Kd4 {[%clk 0:00:15.7]} 72... Kg3 {[%clk 0:00:07.8]}
73. Rg7+ {[%clk 0:00:14.5]} 73... Kf2 {[%clk 0:00:07.8]} 74. Kxd5 {[%clk
0:00:14.1]} 74... Ra4 {[%clk 0:00:08]} 75. Rg4 {[%clk 0:00:08.8]} 75... Kf3
{[%clk 0:00:06.9]} 76. Rh4 {[%clk 0:00:08]} 76... Kg3 {[%clk 0:00:07.1]} 77. Rh8
{[%clk 0:00:08]} 77... f3 {[%clk 0:00:07.5]} 78. Rg8+ {[%clk 0:00:08]} 78... Rg4
{[%clk 0:00:06]} 79. Ra8 {[%clk 0:00:05.3]} 79... f2 {[%clk 0:00:05.9]} 80. Ra3+
{[%clk 0:00:05.9]} 80... Kg2 {[%clk 0:00:06.1]} 81. Ra2 {[%clk 0:00:06.6]} 81...
Kg1 {[%clk 0:00:06.3]} 82. Ra1+ {[%clk 0:00:05.6]} 82... f1=Q {[%clk 0:00:06.4]}
0-1